[Event "Early-Titled-Tuesday-Blitz-January-30-2024"]
[Site "Chess.com"]
[Date "2024.01.30"]
[Round "11"]
[White "Massakru"]
[Black "Herzog2012"]
[Result "1-0"]
[WhiteElo "2419"]
[BlackElo "2533"]
[TimeControl "180+1"]
[EndTime "10:11:10 PST"]
[Termination "Massakru won on time"]

1. e4 {[%clk 0:03:00.9]} 1... c5 {[%clk 0:02:59]} 2. Nf3 {[%clk 0:03:00.9]} 2...
d6 {[%clk 0:02:59.5]} 3. c3 {[%clk 0:03:01.3]} 3... Nf6 {[%clk 0:02:58.1]} 4. h3
{[%clk 0:03:01.5]} 4... g6 {[%clk 0:02:55.1]} 5. Bd3 {[%clk 0:03:02]} 5... Bg7
{[%clk 0:02:54.8]} 6. Bc2 {[%clk 0:03:00.2]} 6... O-O {[%clk 0:02:52.2]} 7. O-O
{[%clk 0:03:00]} 7... Nc6 {[%clk 0:02:52.1]} 8. d4 {[%clk 0:03:00.1]} 8... cxd4
{[%clk 0:02:50.7]} 9. cxd4 {[%clk 0:03:01]} 9... Nb4 {[%clk 0:02:50.6]} 10. Bb3
{[%clk 0:02:58.3]} 10... d5 {[%clk 0:02:42.8]} 11. e5 {[%clk 0:02:55.4]} 11...
Ne4 {[%clk 0:02:42.1]} 12. Nc3 {[%clk 0:02:55.3]} 12... Nxc3 {[%clk 0:02:41.2]}
13. bxc3 {[%clk 0:02:56.2]} 13... Nc6 {[%clk 0:02:41.7]} 14. Bg5 {[%clk
0:02:49.3]} 14... h6 {[%clk 0:02:40.4]} 15. Bh4 {[%clk 0:02:49.5]} 15... g5
{[%clk 0:02:37.7]} 16. Bg3 {[%clk 0:02:46.6]} 16... Bf5 {[%clk 0:02:31.9]} 17.
Bc2 {[%clk 0:02:41.7]} 17... Qd7 {[%clk 0:02:30]} 18. Qb1 {[%clk 0:02:37]} 18...
Bxc2 {[%clk 0:02:25.4]} 19. Qxc2 {[%clk 0:02:37]} 19... f5 {[%clk 0:02:09.4]}
20. exf6 {[%clk 0:02:36.9]} 20... exf6 {[%clk 0:02:08.2]} 21. c4 {[%clk
0:02:22]} 21... f5 {[%clk 0:02:05]} 22. Be5 {[%clk 0:02:18.1]} 22... Nxe5 {[%clk
0:01:58]} 23. Nxe5 {[%clk 0:02:12.4]} 23... Bxe5 {[%clk 0:01:57.1]} 24. dxe5
{[%clk 0:02:13.3]} 24... Rac8 {[%clk 0:01:55.3]} 25. Rad1 {[%clk 0:02:11.2]}
25... Qf7 {[%clk 0:01:49.4]} 26. c5 {[%clk 0:01:57.4]} 26... Rc6 {[%clk
0:01:23.3]} 27. Rfe1 {[%clk 0:01:51.2]} 27... Rfc8 {[%clk 0:01:17.1]} 28. Qb3
{[%clk 0:01:39.5]} 28... Rxc5 {[%clk 0:00:23.5]} 29. e6 {[%clk 0:01:39]} 29...
Qe7 {[%clk 0:00:23.2]} 30. Rxd5 {[%clk 0:01:37.3]} 30... Rc1 {[%clk 0:00:09.4]}
31. Rdd1 {[%clk 0:01:34.3]} 31... Rxd1 {[%clk 0:00:08.9]} 32. Rxd1 {[%clk
0:01:31.2]} 32... Kf8 {[%clk 0:00:04.6]} 33. Rd7 {[%clk 0:01:27.7]} 33... Rc1+
{[%clk 0:00:04.4]} 34. Kh2 {[%clk 0:01:28.1]} 34... Qf6 {[%clk 0:00:01.6]} 35.
Qa3+ {[%clk 0:01:27.3]} 35... Kg8 {[%clk 0:00:01.4]} 36. Qxc1 {[%clk 0:01:23.4]}
36... Qe5+ {[%clk 0:00:01.2]} 37. Kh1 {[%clk 0:01:23]} 37... Qxe6 {[%clk
0:00:01.1]} 38. Qc8+ {[%clk 0:01:22.8]} 1-0

[Event "Early-Titled-Tuesday-Blitz-January-30-2024"]
[Site "Chess.com"]
[Date "2024.01.30"]
[Round "11"]
[White "Mikhail_Golubev"]
[Black "ATM622"]
[Result "0-1"]
[WhiteElo "2645"]
[BlackElo "2467"]
[TimeControl "180+1"]
[EndTime "10:11:11 PST"]
[Termination "ATM622 won on time"]

1. e4 {[%clk 0:03:00.9]} 1... c6 {[%clk 0:02:52.5]} 2. Nf3 {[%clk 0:02:58.8]}
2... d5 {[%clk 0:02:52.6]} 3. Nc3 {[%clk 0:02:59.3]} 3... dxe4 {[%clk
0:02:52.6]} 4. Nxe4 {[%clk 0:02:58.2]} 4... Bg4 {[%clk 0:02:51]} 5. h3 {[%clk
0:02:52.7]} 5... Bxf3 {[%clk 0:02:50.4]} 6. Qxf3 {[%clk 0:02:53.6]} 6... Nf6
{[%clk 0:02:50.1]} 7. Bc4 {[%clk 0:02:43.9]} 7... e6 {[%clk 0:02:45.8]} 8. Nxf6+
{[%clk 0:02:40]} 8... Qxf6 {[%clk 0:02:45.4]} 9. Qxf6 {[%clk 0:02:39]} 9... gxf6
{[%clk 0:02:45.3]} 10. d4 {[%clk 0:02:29.1]} 10... Nd7 {[%clk 0:02:44.7]} 11.
Bb3 {[%clk 0:02:14.8]} 11... c5 {[%clk 0:02:39.1]} 12. d5 {[%clk 0:02:10.5]}
12... e5 {[%clk 0:02:32.8]} 13. c4 {[%clk 0:02:07.5]} 13... Nb6 {[%clk
0:02:33.1]} 14. O-O {[%clk 0:01:44.4]} 14... Bd6 {[%clk 0:02:24.1]} 15. Be3
{[%clk 0:01:31.4]} 15... f5 {[%clk 0:02:21.9]} 16. f4 {[%clk 0:01:30.7]} 16...
e4 {[%clk 0:02:21.7]} 17. Rac1 {[%clk 0:01:28.5]} 17... O-O-O {[%clk 0:02:14.6]}
18. a3 {[%clk 0:01:24.7]} 18... Rhg8 {[%clk 0:02:14.6]} 19. Kf2 {[%clk
0:01:02.9]} 19... Rg6 {[%clk 0:02:12.2]} 20. g3 {[%clk 0:01:01.6]} 20... Rdg8
{[%clk 0:02:10.1]} 21. Rg1 {[%clk 0:01:01.7]} 21... h5 {[%clk 0:02:07.9]} 22. h4
{[%clk 0:01:00.8]} 22... Be7 {[%clk 0:02:06.4]} 23. a4 {[%clk 0:00:30.5]} 23...
Nd7 {[%clk 0:02:04.9]} 24. a5 {[%clk 0:00:25.7]} 24... Nf6 {[%clk 0:02:00.4]}
25. Bd1 {[%clk 0:00:24.5]} 25... Kd7 {[%clk 0:01:58.8]} 26. Be2 {[%clk
0:00:22.1]} 26... a6 {[%clk 0:01:46.5]} 27. Rcd1 {[%clk 0:00:13.4]} 27... Bd6
{[%clk 0:01:43.7]} 28. Rc1 {[%clk 0:00:12.1]} 28... Ng4+ {[%clk 0:01:38]} 29.
Bxg4 {[%clk 0:00:11.5]} 29... Rxg4 {[%clk 0:01:38.4]} 30. Rcd1 {[%clk
0:00:09.9]} 30... R8g6 {[%clk 0:01:34.2]} 31. Rde1 {[%clk 0:00:09.2]} 31... Be7
{[%clk 0:01:34.5]} 32. Bd2 {[%clk 0:00:08.8]} 32... Bf6 {[%clk 0:01:28.9]} 33.
b3 {[%clk 0:00:08.9]} 33... Bd4+ {[%clk 0:01:27.9]} 34. Be3 {[%clk 0:00:08.8]}
34... Kd6 {[%clk 0:01:26.4]} 35. Bxd4 {[%clk 0:00:04.5]} 35... cxd4 {[%clk
0:01:26.5]} 36. b4 {[%clk 0:00:03]} 36... Rg8 {[%clk 0:01:23.6]} 37. Rd1 {[%clk
0:00:02.4]} 37... d3 {[%clk 0:01:22.2]} 38. Rde1 {[%clk 0:00:01.6]} 38... Rc8
{[%clk 0:01:21.7]} 0-1

[Event "Early-Titled-Tuesday-Blitz-January-30-2024"]
[Site "Chess.com"]
[Date "2024.01.30"]
[Round "11"]
[White "AldokhinIvan"]
[Black "ACollins05"]
[Result "1-0"]
[WhiteElo "2660"]
[BlackElo "2504"]
[TimeControl "180+1"]
[EndTime "10:11:15 PST"]
[Termination "AldokhinIvan won by resignation"]

1. e4 {[%clk 0:03:00]} 1... c5 {[%clk 0:02:59.2]} 2. Nf3 {[%clk 0:03:00.5]} 2...
d6 {[%clk 0:02:59.4]} 3. d4 {[%clk 0:03:01.2]} 3... cxd4 {[%clk 0:03:00.3]} 4.
Nxd4 {[%clk 0:03:01.9]} 4... Nf6 {[%clk 0:03:00.9]} 5. Nc3 {[%clk 0:03:02.4]}
5... Nc6 {[%clk 0:03:01.3]} 6. Bc4 {[%clk 0:03:03]} 6... Qb6 {[%clk 0:03:00.1]}
7. Nb3 {[%clk 0:03:02.6]} 7... e6 {[%clk 0:02:58.8]} 8. O-O {[%clk 0:02:59.5]}
8... Be7 {[%clk 0:02:58.7]} 9. Kh1 {[%clk 0:02:59.6]} 9... O-O {[%clk
0:02:55.1]} 10. f4 {[%clk 0:03:00]} 10... Rd8 {[%clk 0:02:55.2]} 11. Bd3 {[%clk
0:02:59.7]} 11... Nb4 {[%clk 0:02:52.5]} 12. Qf3 {[%clk 0:02:49]} 12... Nxd3
{[%clk 0:02:51.6]} 13. cxd3 {[%clk 0:02:49.9]} 13... e5 {[%clk 0:02:50.4]} 14.
Be3 {[%clk 0:02:47]} 14... Qa6 {[%clk 0:02:47.7]} 15. d4 {[%clk 0:02:42.9]}
15... exd4 {[%clk 0:02:39]} 16. Bxd4 {[%clk 0:02:37]} 16... Be6 {[%clk
0:02:34.4]} 17. Nd2 {[%clk 0:02:26.4]} 17... Rac8 {[%clk 0:02:27.3]} 18. f5
{[%clk 0:02:25.8]} 18... Bc4 {[%clk 0:02:27.1]} 19. Nxc4 {[%clk 0:01:46.4]}
19... Rxc4 {[%clk 0:02:28]} 20. Bxf6 {[%clk 0:01:47.3]} 20... Bxf6 {[%clk
0:02:27.1]} 21. Nd5 {[%clk 0:01:48]} 21... Bxb2 {[%clk 0:02:21.9]} 22. Rab1
{[%clk 0:01:46.9]} 22... Be5 {[%clk 0:02:20.7]} 23. f6 {[%clk 0:01:45.6]} 23...
gxf6 {[%clk 0:01:55.1]} 24. Nxf6+ {[%clk 0:01:32.8]} 24... Bxf6 {[%clk
0:01:54.9]} 25. Qxf6 {[%clk 0:01:33.7]} 25... Rd7 {[%clk 0:01:37.9]} 26. Rb3
{[%clk 0:01:22.1]} 26... d5 {[%clk 0:01:25.6]} 27. Rg3+ {[%clk 0:01:17.3]} 27...
Kf8 {[%clk 0:01:25.9]} 28. Qh8+ {[%clk 0:01:08.7]} 28... Ke7 {[%clk 0:01:24.9]}
29. Qxh7 {[%clk 0:00:27.7]} 29... Qf6 {[%clk 0:01:12.1]} 30. Rgf3 {[%clk
0:00:20.7]} 30... Rd6 {[%clk 0:00:58]} 31. Rxf6 {[%clk 0:00:16.3]} 31... Rxf6
{[%clk 0:00:58.9]} 32. Qh4 {[%clk 0:00:15.8]} 32... Rc6 {[%clk 0:00:57.5]} 33.
e5 {[%clk 0:00:15.5]} 1-0

[Event "Early-Titled-Tuesday-Blitz-January-30-2024"]
[Site "Chess.com"]
[Date "2024.01.30"]
[Round "11"]
[White "jjlai1111"]
[Black "Nouali_Mohamed"]
[Result "0-1"]
[WhiteElo "2325"]
[BlackElo "2497"]
[TimeControl "180+1"]
[EndTime "10:11:21 PST"]
[Termination "Nouali_Mohamed won by resignation"]

1. d4 {[%clk 0:02:56]} 1... Nf6 {[%clk 0:02:59.3]} 2. c4 {[%clk 0:02:55.4]} 2...
g6 {[%clk 0:03:00.2]} 3. Nc3 {[%clk 0:02:52.8]} 3... Bg7 {[%clk 0:03:00.6]} 4.
e4 {[%clk 0:02:53.2]} 4... d6 {[%clk 0:03:00.7]} 5. Nf3 {[%clk 0:02:53.8]} 5...
O-O {[%clk 0:03:01.1]} 6. Be2 {[%clk 0:02:53.7]} 6... c5 {[%clk 0:03:01.4]} 7.
O-O {[%clk 0:02:50.5]} 7... cxd4 {[%clk 0:03:01.3]} 8. Nxd4 {[%clk 0:02:49.5]}
8... Nc6 {[%clk 0:03:02.2]} 9. Be3 {[%clk 0:02:46.4]} 9... Nxd4 {[%clk
0:03:01.9]} 10. Bxd4 {[%clk 0:02:45.8]} 10... Be6 {[%clk 0:03:02.8]} 11. f3
{[%clk 0:02:33.7]} 11... Qa5 {[%clk 0:03:03]} 12. Nd5 {[%clk 0:02:33.3]} 12...
Bxd5 {[%clk 0:02:54.2]} 13. cxd5 {[%clk 0:02:31.3]} 13... Rfc8 {[%clk
0:02:51.8]} 14. Bc3 {[%clk 0:02:27.9]} 14... Qb6+ {[%clk 0:02:47.6]} 15. Kh1
{[%clk 0:02:27.2]} 15... Nd7 {[%clk 0:02:46.5]} 16. Qd2 {[%clk 0:02:18.5]} 16...
Bxc3 {[%clk 0:02:40.2]} 17. bxc3 {[%clk 0:02:18.6]} 17... Qa5 {[%clk 0:02:39.7]}
18. Rac1 {[%clk 0:02:18.9]} 18... Rc7 {[%clk 0:02:37.5]} 19. f4 {[%clk
0:02:15.1]} 19... Rac8 {[%clk 0:02:37.3]} 20. Rf3 {[%clk 0:02:15.3]} 20... Nc5
{[%clk 0:02:28.5]} 21. f5 {[%clk 0:01:41.7]} 21... Nxe4 {[%clk 0:02:21.6]} 22.
Qh6 {[%clk 0:01:42]} 22... Nf6 {[%clk 0:01:59]} 23. fxg6 {[%clk 0:01:36.8]}
23... fxg6 {[%clk 0:01:59.7]} 24. Rcf1 {[%clk 0:01:34.1]} 24... Qxd5 {[%clk
0:01:53]} 25. Bd3 {[%clk 0:01:15]} 25... Qf7 {[%clk 0:01:39.2]} 26. c4 {[%clk
0:00:47.2]} 26... Qg7 {[%clk 0:01:30.6]} 27. Qe3 {[%clk 0:00:46.5]} 27... Rc5
{[%clk 0:01:30.1]} 28. Qe6+ {[%clk 0:00:45.7]} 28... Qf7 {[%clk 0:01:29.8]} 29.
Qe3 {[%clk 0:00:36.6]} 29... b6 {[%clk 0:01:28.1]} 30. Qd4 {[%clk 0:00:30.1]}
30... Qe6 {[%clk 0:01:16.1]} 31. Re3 {[%clk 0:00:28.5]} 31... Re5 {[%clk
0:01:16.1]} 32. Rg3 {[%clk 0:00:25.2]} 32... Kg7 {[%clk 0:01:11.8]} 33. Qf4
{[%clk 0:00:18.5]} 33... Nh5 {[%clk 0:01:05.3]} 0-1

[Event "Early-Titled-Tuesday-Blitz-January-30-2024"]
[Site "Chess.com"]
[Date "2024.01.30"]
[Round "11"]
[White "PetrolulSah"]
[Black "Maftuna2303"]
[Result "0-1"]
[WhiteElo "2212"]
[BlackElo "2436"]
[TimeControl "180+1"]
[EndTime "10:11:21 PST"]
[Termination "Maftuna2303 won by resignation"]

1. d4 {[%clk 0:03:00.9]} 1... Nf6 {[%clk 0:02:59.4]} 2. c4 {[%clk 0:02:59.3]}
2... e6 {[%clk 0:02:57.6]} 3. Nf3 {[%clk 0:02:56.5]} 3... b6 {[%clk 0:02:57.1]}
4. a3 {[%clk 0:02:56.5]} 4... Bb7 {[%clk 0:02:57]} 5. Nc3 {[%clk 0:02:56.7]}
5... Be7 {[%clk 0:02:57.3]} 6. d5 {[%clk 0:02:54.4]} 6... O-O {[%clk 0:02:56.6]}
7. e4 {[%clk 0:02:52.4]} 7... d6 {[%clk 0:02:55.8]} 8. Be2 {[%clk 0:02:46.8]}
8... Nbd7 {[%clk 0:02:54.2]} 9. dxe6 {[%clk 0:02:39.6]} 9... fxe6 {[%clk
0:02:53.6]} 10. Ng5 {[%clk 0:02:39.6]} 10... Nc5 {[%clk 0:02:51.5]} 11. b4
{[%clk 0:02:38.9]} 11... h6 {[%clk 0:02:51.6]} 12. bxc5 {[%clk 0:02:36.2]} 12...
hxg5 {[%clk 0:02:51]} 13. cxd6 {[%clk 0:02:33.6]} 13... cxd6 {[%clk 0:02:49]}
14. e5 {[%clk 0:02:24]} 14... dxe5 {[%clk 0:02:47.6]} 15. Bxg5 {[%clk
0:02:18.8]} 15... Bxg2 {[%clk 0:02:40.2]} 16. Rg1 {[%clk 0:02:17.4]} 16... Qxd1+
{[%clk 0:02:37.8]} 17. Rxd1 {[%clk 0:02:11.2]} 17... Bc6 {[%clk 0:02:37.1]} 18.
Bh6 {[%clk 0:02:06.2]} 18... Rf7 {[%clk 0:02:35.5]} 19. Nb5 {[%clk 0:01:54.8]}
19... Bxa3 {[%clk 0:02:30.7]} 20. Nd6 {[%clk 0:01:52.9]} 20... Rd7 {[%clk
0:02:24.8]} 21. Nb5 {[%clk 0:01:46.6]} 21... Bb4+ {[%clk 0:02:22.9]} 22. Kf1
{[%clk 0:01:46]} 22... Rf7 {[%clk 0:02:01.4]} 23. Nd6 {[%clk 0:01:35.4]} 23...
Re7 {[%clk 0:01:54.9]} 24. Rg6 {[%clk 0:01:20.1]} 24... Rf8 {[%clk 0:01:50.9]}
25. c5 {[%clk 0:01:03.7]} 25... Bxc5 {[%clk 0:01:49.9]} 26. Bc4 {[%clk
0:01:02.5]} 26... Nd5 {[%clk 0:01:46.5]} 27. Ne4 {[%clk 0:00:49.3]} 27... Bd4
{[%clk 0:01:41.9]} 28. Bg5 {[%clk 0:00:32.1]} 28... Ref7 {[%clk 0:01:38.2]} 29.
Rxe6 {[%clk 0:00:31.2]} 29... Bb7 {[%clk 0:01:24.6]} 30. Ke2 {[%clk 0:00:21.1]}
30... Kh8 {[%clk 0:01:10.1]} 31. Rg1 {[%clk 0:00:20.4]} 31... Nc3+ {[%clk
0:01:05.2]} 32. Nxc3 {[%clk 0:00:19.8]} 32... Rxf2+ {[%clk 0:01:04.1]} 33. Kd3
{[%clk 0:00:18.6]} 33... R8f3+ {[%clk 0:00:57.9]} 0-1

[Event "Early-Titled-Tuesday-Blitz-January-30-2024"]
[Site "Chess.com"]
[Date "2024.01.30"]
[Round "11"]
[White "Al_Shima"]
[Black "AttilaTurzo"]
[Result "1-0"]
[WhiteElo "2370"]
[BlackElo "2474"]
[TimeControl "180+1"]
[EndTime "10:11:29 PST"]
[Termination "Al_Shima won by resignation"]

1. d4 {[%clk 0:02:54.3]} 1... d5 {[%clk 0:02:59.4]} 2. Nc3 {[%clk 0:02:54.7]}
2... Nf6 {[%clk 0:02:58.6]} 3. Bf4 {[%clk 0:02:55.2]} 3... Bf5 {[%clk
0:02:55.9]} 4. e3 {[%clk 0:02:55.1]} 4... e6 {[%clk 0:02:54.6]} 5. f3 {[%clk
0:02:54.1]} 5... c5 {[%clk 0:02:45.2]} 6. g4 {[%clk 0:02:53.5]} 6... Bg6 {[%clk
0:02:44.7]} 7. h4 {[%clk 0:02:54]} 7... cxd4 {[%clk 0:02:40.4]} 8. exd4 {[%clk
0:02:53.4]} 8... h5 {[%clk 0:02:38.5]} 9. g5 {[%clk 0:02:53.5]} 9... Nfd7 {[%clk
0:02:38.5]} 10. Bd3 {[%clk 0:02:53.7]} 10... Bxd3 {[%clk 0:02:33.1]} 11. Qxd3
{[%clk 0:02:54.6]} 11... g6 {[%clk 0:02:32.7]} 12. O-O-O {[%clk 0:02:42.1]}
12... a6 {[%clk 0:02:31.2]} 13. Re1 {[%clk 0:02:40.6]} 13... Bg7 {[%clk
0:02:28.9]} 14. Nxd5 {[%clk 0:02:39]} 14... O-O {[%clk 0:02:29]} 15. Bc7 {[%clk
0:02:04.6]} 15... Qe8 {[%clk 0:02:21.1]} 16. Bd6 {[%clk 0:01:51.9]} 16... Nc6
{[%clk 0:01:58.4]} 17. Nc7 {[%clk 0:01:39.4]} 17... Qc8 {[%clk 0:01:57.2]} 18.
Nxa8 {[%clk 0:01:34.5]} 18... Qxa8 {[%clk 0:01:58.1]} 19. Bxf8 {[%clk 0:01:34]}
19... Qxf8 {[%clk 0:01:59]} 20. Ne2 {[%clk 0:01:32]} 20... Nb6 {[%clk 0:01:56]}
21. a3 {[%clk 0:01:22.1]} 21... Qd6 {[%clk 0:01:51.1]} 22. Rd1 {[%clk
0:01:13.5]} 22... Qd5 {[%clk 0:01:50.5]} 23. Nc3 {[%clk 0:01:11.7]} 23... Qf5
{[%clk 0:01:44.7]} 24. Qxf5 {[%clk 0:01:10.4]} 24... gxf5 {[%clk 0:01:44.1]} 25.
d5 {[%clk 0:01:10.3]} 25... exd5 {[%clk 0:01:41.2]} 26. Nxd5 {[%clk 0:01:01.6]}
26... Nc4 {[%clk 0:01:41.1]} 27. c3 {[%clk 0:01:02]} 27... Be5 {[%clk
0:01:36.4]} 28. f4 {[%clk 0:00:58.9]} 28... Bg7 {[%clk 0:01:33.5]} 29. Rhe1
{[%clk 0:00:52.2]} 29... Kh7 {[%clk 0:01:32.3]} 30. Ne7 {[%clk 0:00:45.6]} 30...
N6a5 {[%clk 0:01:27.3]} 31. Nxf5 {[%clk 0:00:42.5]} 31... Kg6 {[%clk 0:01:26.9]}
32. Nxg7 {[%clk 0:00:42.5]} 32... Kxg7 {[%clk 0:01:27]} 33. f5 {[%clk
0:00:42.4]} 33... Nb3+ {[%clk 0:01:25.8]} 34. Kc2 {[%clk 0:00:41.6]} 34... Nc5
{[%clk 0:01:25.9]} 35. Rd4 {[%clk 0:00:30.9]} 35... b5 {[%clk 0:01:24.2]} 36. b3
{[%clk 0:00:22.9]} 36... Nb6 {[%clk 0:01:19.8]} 37. Rd6 {[%clk 0:00:20.5]} 37...
Nbd7 {[%clk 0:01:11.9]} 38. Re7 {[%clk 0:00:18.9]} 38... Nf8 {[%clk 0:01:08.3]}
39. g6 {[%clk 0:00:18]} 39... Kg8 {[%clk 0:01:03.7]} 40. Rxf7 {[%clk 0:00:14.6]}
40... Ne4 {[%clk 0:00:59.3]} 41. Rd8 {[%clk 0:00:12.9]} 1-0

[Event "Early-Titled-Tuesday-Blitz-January-30-2024"]
[Site "Chess.com"]
[Date "2024.01.30"]
[Round "11"]
[White "Lion-Al-Messi"]
[Black "ContrVersia"]
[Result "0-1"]
[WhiteElo "2596"]
[BlackElo "2847"]
[TimeControl "180+1"]
[EndTime "10:11:31 PST"]
[Termination "ContrVersia won by resignation"]

1. e4 {[%clk 0:03:00.9]} 1... c5 {[%clk 0:02:57.3]} 2. Nf3 {[%clk 0:03:00.8]}
2... a6 {[%clk 0:02:57.6]} 3. c3 {[%clk 0:03:00.7]} 3... d5 {[%clk 0:02:57.2]}
4. e5 {[%clk 0:02:59.8]} 4... Nc6 {[%clk 0:02:56.8]} 5. d4 {[%clk 0:03:00.1]}
5... cxd4 {[%clk 0:02:57.2]} 6. cxd4 {[%clk 0:02:59.8]} 6... Bg4 {[%clk
0:02:57.7]} 7. Be2 {[%clk 0:02:56.1]} 7... e6 {[%clk 0:02:57.2]} 8. Nbd2 {[%clk
0:02:45.3]} 8... Nge7 {[%clk 0:02:53]} 9. h3 {[%clk 0:02:43.5]} 9... Bh5 {[%clk
0:02:52.7]} 10. O-O {[%clk 0:02:43.7]} 10... Qb6 {[%clk 0:02:51.5]} 11. g4
{[%clk 0:02:39.4]} 11... Bg6 {[%clk 0:02:51]} 12. Nb3 {[%clk 0:02:40]} 12... h5
{[%clk 0:02:47.4]} 13. Be3 {[%clk 0:02:35.7]} 13... hxg4 {[%clk 0:02:46.8]} 14.
hxg4 {[%clk 0:02:36.6]} 14... Be4 {[%clk 0:02:46.8]} 15. Nbd2 {[%clk 0:02:28.8]}
15... Bg6 {[%clk 0:02:45.7]} 16. Qb3 {[%clk 0:02:25.2]} 16... Nc8 {[%clk
0:02:45.4]} 17. Qxb6 {[%clk 0:02:24.5]} 17... Nxb6 {[%clk 0:02:46.3]} 18. a3
{[%clk 0:02:23.8]} 18... Na4 {[%clk 0:02:45.1]} 19. Ra2 {[%clk 0:02:15.8]} 19...
Be7 {[%clk 0:02:41.2]} 20. Rc1 {[%clk 0:02:15.2]} 20... Kd7 {[%clk 0:02:37]} 21.
b3 {[%clk 0:02:15.7]} 21... Nb6 {[%clk 0:02:37.1]} 22. b4 {[%clk 0:02:13.2]}
22... Rac8 {[%clk 0:02:36.2]} 23. Nb3 {[%clk 0:02:12.3]} 23... Be4 {[%clk
0:02:31.5]} 24. Nc5+ {[%clk 0:02:11.9]} 24... Bxc5 {[%clk 0:02:29.1]} 25. bxc5
{[%clk 0:02:01]} 25... Nc4 {[%clk 0:02:25.7]} 26. Nh2 {[%clk 0:01:45.5]} 26...
Rh3 {[%clk 0:01:58.2]} 27. Bxc4 {[%clk 0:01:42.7]} 27... dxc4 {[%clk 0:01:57.2]}
28. f3 {[%clk 0:01:39.1]} 28... Bxf3 {[%clk 0:01:52.9]} 29. Rf2 {[%clk
0:01:38.2]} 29... Bd5 {[%clk 0:01:40.9]} 30. Rxf7+ {[%clk 0:01:37.8]} 30... Ke8
{[%clk 0:01:41.5]} 31. Rxg7 {[%clk 0:01:35.5]} 31... Rxe3 {[%clk 0:01:37.1]} 32.
Rf1 {[%clk 0:01:31.3]} 32... Rg3+ {[%clk 0:01:30.7]} 33. Kf2 {[%clk 0:01:27.1]}
33... Rg2+ {[%clk 0:01:30.9]} 34. Ke3 {[%clk 0:01:27.4]} 34... Rxh2 {[%clk
0:01:19.9]} 35. Rff7 {[%clk 0:01:27.3]} 35... Rh8 {[%clk 0:00:55.7]} 36. Rxb7
{[%clk 0:01:26.9]} 36... Nd8 {[%clk 0:00:46.8]} 37. Ra7 {[%clk 0:01:22.4]} 37...
Kf8 {[%clk 0:00:42.9]} 38. g5 {[%clk 0:01:17.7]} 38... c3 {[%clk 0:00:39.5]} 39.
g6 {[%clk 0:01:04.7]} 39... c2 {[%clk 0:00:38.2]} 40. Kd2 {[%clk 0:01:04.2]}
40... Rh2+ {[%clk 0:00:38]} 41. Kc1 {[%clk 0:01:02.3]} 41... Rb8 {[%clk
0:00:35.8]} 42. Rgf7+ {[%clk 0:00:47.2]} 42... Nxf7 {[%clk 0:00:34.7]} 43. Rxf7+
{[%clk 0:00:47.2]} 43... Kg8 {[%clk 0:00:32.3]} 44. Rg7+ {[%clk 0:00:47.9]}
44... Kxg7 {[%clk 0:00:29.5]} 45. a4 {[%clk 0:00:48]} 0-1

[Event "Early-Titled-Tuesday-Blitz-January-30-2024"]
[Site "Chess.com"]
[Date "2024.01.30"]
[Round "11"]
[White "Heinza9"]
[Black "Mohamed-almado"]
[Result "0-1"]
[WhiteElo "2279"]
[BlackElo "2269"]
[TimeControl "180+1"]
[EndTime "10:11:31 PST"]
[Termination "Mohamed-almado won by checkmate"]

1. e4 {[%clk 0:03:00.9]} 1... e5 {[%clk 0:02:59.4]} 2. Nf3 {[%clk 0:03:00.6]}
2... Nf6 {[%clk 0:02:57.1]} 3. Nc3 {[%clk 0:03:00.3]} 3... Nc6 {[%clk
0:02:54.2]} 4. d4 {[%clk 0:03:00.5]} 4... exd4 {[%clk 0:02:52]} 5. Nd5 {[%clk
0:03:00.7]} 5... Be7 {[%clk 0:02:45.8]} 6. Nxd4 {[%clk 0:03:00.1]} 6... Nxe4
{[%clk 0:02:41.4]} 7. Nb5 {[%clk 0:02:58.7]} 7... Bd6 {[%clk 0:02:33.2]} 8. Bd3
{[%clk 0:02:53.5]} 8... O-O {[%clk 0:02:29.2]} 9. Bxe4 {[%clk 0:02:47.1]} 9...
Re8 {[%clk 0:02:28.8]} 10. Nxd6 {[%clk 0:02:27.9]} 10... cxd6 {[%clk 0:02:28.1]}
11. O-O {[%clk 0:02:27.6]} 11... Rxe4 {[%clk 0:02:26.1]} 12. Qd3 {[%clk
0:02:13.8]} 12... Re6 {[%clk 0:02:23.9]} 13. Bf4 {[%clk 0:02:09.7]} 13... b6
{[%clk 0:02:21.4]} 14. Ne3 {[%clk 0:02:00.1]} 14... Ne5 {[%clk 0:02:16.4]} 15.
Qd5 {[%clk 0:01:33.5]} 15... Ba6 {[%clk 0:02:11.8]} 16. Rfd1 {[%clk 0:01:29.8]}
16... Re7 {[%clk 0:01:48]} 17. Nf5 {[%clk 0:01:22.2]} 17... Re6 {[%clk
0:01:44.8]} 18. Nxd6 {[%clk 0:01:18.4]} 18... Nc6 {[%clk 0:01:37.5]} 19. c3
{[%clk 0:00:58.3]} 19... Ne7 {[%clk 0:01:32.1]} 20. Qf3 {[%clk 0:00:52.5]} 20...
Nc6 {[%clk 0:01:26.4]} 21. Nxf7 {[%clk 0:00:36.8]} 21... Kxf7 {[%clk 0:01:21.6]}
22. Bg5+ {[%clk 0:00:36.5]} 22... Rf6 {[%clk 0:01:21.9]} 23. Bxf6 {[%clk
0:00:36.4]} 23... Qxf6 {[%clk 0:01:21.3]} 24. Rxd7+ {[%clk 0:00:35.6]} 24... Kg8
{[%clk 0:01:21.8]} 25. Qd5+ {[%clk 0:00:34]} 25... Kh8 {[%clk 0:01:19.9]} 26.
Rd6 {[%clk 0:00:33]} 26... Qe7 {[%clk 0:01:02.1]} 27. Qxc6 {[%clk 0:00:30.6]}
27... Re8 {[%clk 0:00:59.6]} 28. h3 {[%clk 0:00:29.4]} 28... Bb7 {[%clk
0:00:58.4]} 29. Qd7 {[%clk 0:00:26.9]} 29... Qe4 {[%clk 0:00:54.9]} 30. f3
{[%clk 0:00:22.8]} 30... Qe3+ {[%clk 0:00:54.9]} 31. Kh1 {[%clk 0:00:21.7]}
31... Bxf3 {[%clk 0:00:54.8]} 32. Rf1 {[%clk 0:00:15.4]} 32... Ba8 {[%clk
0:00:47.7]} 33. Qf7 {[%clk 0:00:09.3]} 33... Qxh3+ {[%clk 0:00:46.9]} 34. Kg1
{[%clk 0:00:08.6]} 34... Qxg2# {[%clk 0:00:47.5]} 0-1